Workbook

Sheet Energy before
B2: Measurement & Verification - before
R3: 90.52 | S3: 18.759
B5: Utility type | F5: Energy
B7: Regression type | F7: Linear
B8: Target trend transposition coefficient | F8: -5
B10: No. | C10: Duration | D10: Real - before the energy efficiency implementation | G10: Optimized | J10: Potential estimated savings | M10: Manual target | S10: Consumuri oprimizate | W10: Regresii matem. | X10: Linear | Z10: Logarithmic | AB10: Exponentiala
C11: Month | D11: Production | E11: Consumption | F11: Specific Consumption | G11: Production | H11: Energy Consumption | I11: Specific Consumption | J11: Savings | K11: Potential savings - Specific Consumption | M11: Target consumption reduction | N11: Target consumption | O11: Production | Q11: Specific Consumption
D12: [……...] | E12: [MWh] | F12: [kWh/……….] | G12: [……….] | H12: [MWh] | I12: [kWh/………..] | J12: [MWh] | K12: [kWh/ ………..] | L12: [%] | M12: [%] | N12: [MWh] | O12: [……...] | Q12: [kWh/……….] | S12: Distance [MWh] | T12: Wop2 [MWh] | U12: Wop3 [MWh] | W12: Coeficienti | X12: real | Y12: optimizat | Z12: real | AA12: optimizat | AB12: real | AC12: optimizat | AE12: liniar | AF12: logaritmic | AG12: exponential
B13: 1 | C13: JAN | D13: 2947 | E13: 31 | F13: =E13/D13*1000 -> 10.51917204 | G13: =D13 -> 2947 | H13: =IF(U13<E13,U13, E13) -> 19.73189326 | I13: =IF(H13*1000/G13<F13, H13/G13*1000,F13) -> 6.695586448 | J13: =IF(H13>0,E13-H13,0) -> 11.26810674 | K13: =IF(I13>0,F13-I13,F13) -> 3.823585591 | L13: =J13/E13 -> 0.3634873141 | M13: 6 | N13: =(100-M13)/100*E13 -> 29.14 | O13: =D13 -> 2947 | Q13: =N13/O13*1000 -> 9.888021717 | S13: =CHOOSE(INDEX(FunctNumber,MATCH($F$7,FunctName,0)),IF(AE13=-$X$13,FALSE,AE13),E13-($Z$14*LN(D13)+$Z$13),IF(AG13=-$AB$14,FALSE,AG13)) -> 1.797028259 | T13: =IF(E13-(ABS(X$16)-F$8)>0,E13-(ABS(X$16)-F$8),FALSE) -> 21.52892152 | U13: =CHOOSE(INDEX(FunctNumber,MATCH($F$7,FunctName,0)),$Y$14*G13+$Y$13,$AA$14*LN(G13)+$AA$13,($AC$14)*EXP($AC$13*G13)) -> 19.73189326 | W13: b | X13: =INTERCEPT(OFFSET($E$13,,,COUNT(E13:E24),1),OFFSET($D$13,,,COUNT(D13:D24),1)) -> -24.90439091 | Y13: =INTERCEPT(OFFSET($T$13,,,COUNT(T13:T24),1),OFFSET($G$13,,,COUNT(G13:G24),1)) -> -34.37546939 | Z13: =INTERCEPT(OFFSET($E$13,,,COUNT(E13:E24),1),LN(OFFSET($D$13,,,COUNT(D13:D24),1))) -> -440.7522558 | AA13: =INTERCEPT(OFFSET($T$13,,,COUNT(T13:T24),1),LN(OFFSET($G$13,,,COUNT(G13:G24),1))) -> -450.2233343 | AB13: =SLOPE(LN(OFFSET($E$13,,,COUNT(E13:E24),1)),(OFFSET($D$13,,,COUNT(D13:D24),1))) -> 0.0005061862573 | AC13: =SLOPE(LN(OFFSET($T$13,,,COUNT(T13:T24),1)),(OFFSET($G$13,,,COUNT(G13:G24),1))) -> 0.0006905293148 | AE13: =E13-($X$14*D13+$X$13) -> 1.797028259 | AF13: =E13-($Z$14*LN(D13)+$Z$13) -> 1.698860076 | AG13: =E13-($AB$14*EXP($AB$13*D13)) -> 1.581029632
B14: 2 | C14: FEB | D14: 3125 | E14: 28 | F14: =E14/D14*1000 -> 8.96 | G14: 3125 | H14: =IF(U14<E14,U14, E14) -> 23 | I14: 7.36 | J14: =IF(H14>0,E14-H14,0) -> 5 | K14: =IF(I14>0,F14-I14,F14) -> 1.6 | L14: 0.1785714286 | M14: 6 | N14: =(100-M14)/100*E14 -> 26.32 | O14: =D14 -> 3125 | Q14: =N14/O14*1000 -> 8.4224 | S14: -4.471078478 | T14: 18.52892152 | U14: 23 | W14: a | X14: =SLOPE(OFFSET($E$13,,,COUNT(E13:E24),1),OFFSET($D$13,,,COUNT(D13:D24),1)) -> 0.01836015021 | Y14: =SLOPE(OFFSET($T$13,,,COUNT(T13:T24),1),OFFSET($G$13,,,COUNT(G13:G24),1)) -> 0.01836015021 | Z14: =SLOPE(OFFSET($E$13,,,COUNT(E13:E24),1),LN(OFFSET($D$13,,,COUNT(D13:D24),1))) -> 58.84094218 | AA14: =SLOPE(OFFSET($T$13,,,COUNT(T13:T24),1),LN(OFFSET($G$13,,,COUNT(G13:G24),1))) -> 58.84094218 | AB14: =10^(INTERCEPT((LOG(OFFSET($E$13,,,COUNT(E13:E24),1)))/LOG(10),OFFSET($D$13,,,COUNT(D13:D24),1))) -> 6.618765132 | AC14: =10^(INTERCEPT((LOG(OFFSET($T$13,,,COUNT(T13:T24),1)))/LOG(10),OFFSET($G$13,,,COUNT(G13:G24),1))) -> 2.613657229 | AE14: -4.471078478 | AF14: -4.751959913 | AG14: -4.192737083
B15: 3 | C15: MARCH | D15: 3200 | E15: 35 | F15: 10.9375 | G15: 3200 | H15: 24.37701127 | I15: 7.61781602 | J15: 10.62298873 | K15: 3.31968398 | L15: 0.3035139638 | M15: 6 | N15: 32.9 | O15: 3200 | Q15: 10.28125 | S15: 1.151910257 | T15: 25.52892152 | U15: 24.37701127 | W15: Funct | X15: Y=a*x+b | Z15: Y=a*ln(x)+b | AB15: Y=a*e^(b*x) | AE15: 1.151910257 | AF15: 0.8525373153 | AG15: 1.561603351
B16: 4 | C16: APRIL | D16: 3450 | E16: 37 | F16: 10.72463768 | G16: 3450 | H16: 28.96704882 | I16: 8.396246034 | J16: 8.032951183 | K16: 2.328391647 | L16: 0.2171067887 | M16: 6 | N16: 34.78 | O16: 3450 | Q16: 10.08115942 | S16: -1.438127295 | T16: 27.52892152 | U16: 28.96704882 | W16: min | X16: =MIN(OFFSET(S13,0,0,COUNT(S13:S24),1)) -> -4.471078478 | AE16: -1.438127295 | AF16: -1.573679664 | AG16: -0.9493131285
B17: 5 | C17: MAY | D17: 3500 | E17: 41 | F17: 11.71428571 | G17: 3500 | H17: 29.88505633 | I17: 8.538587522 | J17: 11.11494367 | K17: 3.175698192 | L17: 0.2710961871 | M17: 6 | N17: 38.54 | O17: 3500 | Q17: 11.01142857 | S17: 1.643865195 | T17: 31.52892152 | U17: 29.88505633 | W17: range | X17: =OFFSET($C$13,0,0,COUNT($C$13:$C$24),1) ->  | AE17: 1.643865195 | AF17: 1.579673467 | AG17: 2.077958209
B18: 6 | C18: JUNE | D18: 3600 | E18: 43 | F18: 11.94444444 | G18: 3600 | H18: 31.72107135 | I18: 8.811408708 | J18: 11.27892865 | K18: 3.133035737 | L18: 0.2623006663 | M18: 6 | N18: 40.42 | O18: 3600 | Q18: 11.22777778 | S18: 1.807850174 | T18: 33.52892152 | U18: 31.72107135 | AE18: 1.807850174 | AF18: 1.922072524 | AG18: 2.057061931
B19: 7 | C19: JULY | D19: 3750 | E19: 45 | F19: 12 | G19: 3750 | H19: 34.47509388 | I19: 9.193358368 | J19: 10.52490612 | K19: 2.806641632 | L19: 0.2338868027 | M19: 6 | N19: 42.3 | O19: 3750 | Q19: 11.28 | S19: 1.053827643 | T19: 35.52892152 | U19: 34.47509388 | W19: FunctName | X19: FunctNumber | AE19: 1.053827643 | AF19: 1.520067905 | AG19: 0.8272854104
B20: 8 | C20: AUG | D20: 3800 | E20: 46 | F20: 12.10526316 | G20: 3800 | H20: 35.39310139 | I20: 9.31397405 | J20: 10.60689861 | K20: 2.791289108 | L20: 0.2305847524 | M20: 6 | N20: 43.24 | O20: 3800 | Q20: 11.37894737 | S20: 1.135820133 | T20: 36.52892152 | U20: 35.39310139 | W20: Linear | X20: 1 | AE20: 1.135820133 | AF20: 1.740706284 | AG20: 0.6950365757
B21: 9 | C21: SEPT | D21: 3300 | E21: 34 | F21: 10.3030303 | G21: 3300 | H21: 26.21302629 | I21: 7.943341299 | J21: 7.786973714 | K21: 2.359689004 | L21: 0.2290286386 | M21: 6 | N21: 31.96 | O21: 3300 | Q21: 9.684848485 | S21: -1.684104764 | T21: 24.52892152 | U21: 26.21302629 | W21: Logaritmic | X21: 2 | AE21: -1.684104764 | AF21: -1.958096073 | AG21: -1.174573073
B22: 10 | C22: OCT | D22: 3280 | E22: 32 | F22: 9.756097561 | G22: 3280 | H22: 25.84582328 | I22: 7.879824171 | J22: 6.154176718 | K22: 1.87627339 | L22: 0.1923180224 | M22: 6 | N22: 30.08 | O22: 3280 | Q22: 9.170731707 | S22: -3.31690176 | T22: 22.52892152 | U22: 25.84582328 | W22: Exponential | X22: 3 | AE22: -3.31690176 | AF22: -3.600399274 | AG22: -2.820271813
B23: 11 | C23: NOV | D23: 3100 | E23: 31 | F23: 10 | G23: 3100 | H23: 22.54099624 | I23: 7.271289111 | J23: 8.459003755 | K23: 2.728710889 | L23: 0.2728710889 | M23: 6 | N23: 29.14 | O23: 3100 | Q23: 9.4 | S23: -1.012074723 | T23: 21.52892152 | U23: 22.54099624 | AE23: -1.012074723 | AF23: -1.279339363 | AG23: -0.7879158943
B24: 12 | C24: DEC | D24: 2700 | E24: 28 | F24: 10.37037037 | G24: 2700 | H24: 15.19693616 | I24: 5.628494875 | J24: 12.80306384 | K24: 4.741875495 | L24: 0.4572522799 | M24: 6 | N24: 26.32 | O24: 2700 | Q24: 9.748148148 | S24: 3.331985359 | T24: 18.52892152 | U24: 15.19693616 | W24: b_optimized | X24: =INTERCEPT(H13:H24,D13:D24) -> -34.37546939 | AE24: 3.331985359 | AF24: 3.849556716 | AG24: 2.038576847
B25: TOTAL | D25: =SUM(D13:D24) -> 39752 | E25: =SUBTOTAL(9,E13:E24) -> 431 | F25: =E25/D25*1000 -> 10.84222178 | G25: =SUBTOTAL(9,G13:G24) -> 39752 | H25: =SUBTOTAL(9,H13:H24) -> 317.3470583 | I25: =IF(H25/G25<F25, H25/G25*1000,F25) -> 7.983172124 | J25: =SUBTOTAL(9,J13:J24) -> 113.6529417 | K25: 2.859049651 | L25: 0.2636959205 | N25: =SUM(N13:N24) -> 405.14 | O25: =SUM(O13:O24) -> 39752 | Q25: =N25/O25*1000 -> 10.19168847 | W25: a_optimized | X25: =SLOPE(H13:H24,D13:D24) -> 0.01836015021
R26: Dmax | S26: =MAX(S13:S24) -> 3.331985359
R27: Dmin | S27: =MIN(S13:S24) -> -4.471078478
R28: Consumption (min) | S28: =MIN(E13:E24) -> 28
O29: Only for optimized trend line | R29: Tc (min) | S29: =ABS(S27)-S28 -> -23.52892152
R30: Tc(max) | S30: =ABS(S27)+S26 -> 7.803063837
O33: 2947 | Q33: =($X$34*O33)+$X$33 -> 27.45079344 | W33: b_manual targer | X33: =INTERCEPT(N13:N24,D13:D24) -> -23.41012746
O34: 3125 | Q34: =($X$34*O34)+$X$33 -> 30.52281377 | W34: a_manual target | X34: =SLOPE(N13:N24,D13:D24) -> 0.01725854119
O35: 3200 | Q35: 31.81720436
O36: 3450 | Q36: 36.13183966
O37: 3500 | Q37: 36.99476672
O38: 3600 | Q38: 38.72062084
O39: 3750 | Q39: 41.30940202
O40: 3800 | Q40: 42.17232907
O41: 3300 | Q41: 33.54305848
O42: 3280 | Q42: 33.19788765
O43: 3100 | Q43: 30.09135024
O44: 2700 | Q44: 23.18793376

Sheet Energy after
B2: Measurement & Verification - after
Q3: 90.52 | R3: 18.759
B5: Utility type | F5: Energy
B7: Regression type | F7: Linear
B8: Target trend transposition coefficient | F8: 10
B9: Insert data after enegry conservation measures
B10: No. | C10: Duration | D10: Real - after the energy efficiency implementation | G10: Optimized | J10: Potential estimated savings | R10: Consumuri oprimizate | V10: Regresii matem. | W10: Linear | Y10: Logarithmic | AA10: Exponentiala
C11: Month | D11: Production | E11: Consumption | F11: KPI | G11: Production | H11: Consumption | I11: KPI | J11: Savings | K11: Savings as a KPI
D12: [……...] | E12: [MWh] | F12: [kWh/……….] | G12: [……….] | H12: [MWh] | I12: [kWh/………..] | J12: [MWh] | K12: [kWh/ ………..] | L12: [%] | R12: Wop1 [MWh] | S12: Wop2 [MWh] | T12: Wop3 [MWh] | V12: Coeficienti | W12: real | X12: optimizat | Y12: real | Z12: optimizat | AA12: real | AB12: optimizat | AD12: liniar | AE12: logaritmic | AF12: exponential
B13: 1 | C13: JAN | D13: 3500 | E13: 27.5 | F13: =E13/D13*1000 -> 7.857142857 | G13: =D13 -> 3500 | H13: =IF(T13<E13,T13, E13) -> 27.5 | I13: =IF(H13*1000/G13<F13, H13/G13*1000,F13) -> 7.857142857 | J13: =IF(H13>0,E13-H13,0) -> 0 | K13: =IF(I13>0,F13-I13,F13) -> 0 | L13: =J13/E13 -> 0 | R13: =CHOOSE(INDEX(FunctNumber,MATCH($F$7,FunctName,0)),IF(AD13=-$W$13,FALSE,AD13),E13-($Y$14*LN(D13)+$Y$13),IF(AF13=-$AA$14,FALSE,AF13)) -> -1.384736075 | S13: =IF(E13-(ABS(W$16)-F$8)>0,E13-(ABS(W$16)-F$8),FALSE) -> 35.43736795 | T13: =CHOOSE(INDEX(FunctNumber,MATCH($F$7,FunctName,0)),$X$14*G13+$X$13,$Z$14*LN(G13)+$Z$13,($AB$14)*EXP($AB$13*G13)) -> 36.82210402 | V13: b | W13: =INTERCEPT(OFFSET($E$13,,,COUNT(E13:E24),1),OFFSET($D$13,,,COUNT(D13:D24),1)) -> 7.788030977 | X13: =INTERCEPT(OFFSET($S$13,,,COUNT(S13:S24),1),OFFSET($G$13,,,COUNT(G13:G24),1)) -> 15.72539892 | Y13: =INTERCEPT(OFFSET($E$13,,,COUNT(E13:E24),1),LN(OFFSET($D$13,,,COUNT(D13:D24),1))) -> -135.0326366 | Z13: =INTERCEPT(OFFSET($S$13,,,COUNT(S13:S24),1),LN(OFFSET($G$13,,,COUNT(G13:G24),1))) -> -127.0952686 | AA13: =SLOPE(LN(OFFSET($E$13,,,COUNT(E13:E24),1)),(OFFSET($D$13,,,COUNT(D13:D24),1))) -> 0.0002309171007 | AB13: =SLOPE(LN(OFFSET($S$13,,,COUNT(S13:S24),1)),(OFFSET($G$13,,,COUNT(G13:G24),1))) -> 0.0001768286554 | AD13: =E13-($W$14*D13+$W$13) -> -1.384736075 | AE13: =E13-($Y$14*LN(D13)+$Y$13) -> -1.441833242 | AF13: =E13-($AA$14*EXP($AA$13*D13)) -> -1.364789263
B14: 2 | C14: FEB | D14: 3125 | E14: 26 | F14: =E14/D14*1000 -> 8.32 | G14: =D14 -> 3125 | H14: =IF(T14<E14,T14, E14) -> 26 | I14: 8.32 | J14: =IF(H14>0,E14-H14,0) -> 0 | K14: =IF(I14>0,F14-I14,F14) -> 0 | L14: =J14/E14 -> 0 | R14: -0.6243748143 | S14: 33.93736795 | T14: =CHOOSE(INDEX(FunctNumber,MATCH($F$7,FunctName,0)),$X$14*G14+$X$13,$Z$14*LN(G14)+$Z$13,($AB$14)*EXP($AB$13*G14)) -> 34.56174276 | V14: a | W14: =SLOPE(OFFSET($E$13,,,COUNT(E13:E24),1),OFFSET($D$13,,,COUNT(D13:D24),1)) -> 0.006027630028 | X14: =SLOPE(OFFSET($S$13,,,COUNT(S13:S24),1),OFFSET($G$13,,,COUNT(G13:G24),1)) -> 0.006027630028 | Y14: =SLOPE(OFFSET($E$13,,,COUNT(E13:E24),1),LN(OFFSET($D$13,,,COUNT(D13:D24),1))) -> 20.09363436 | Z14: =SLOPE(OFFSET($S$13,,,COUNT(S13:S24),1),LN(OFFSET($G$13,,,COUNT(G13:G24),1))) -> 20.09363436 | AA14: =10^(INTERCEPT((LOG(OFFSET($E$13,,,COUNT(E13:E24),1)))/LOG(10),OFFSET($D$13,,,COUNT(D13:D24),1))) -> 12.86374173 | AB14: =10^(INTERCEPT((LOG(OFFSET($S$13,,,COUNT(S13:S24),1)))/LOG(10),OFFSET($G$13,,,COUNT(G13:G24),1))) -> 19.82157855 | AD14: -0.6243748143 | AE14: -0.6646480778 | AF14: -0.4704383124
B15: 3 | C15: MARCH | D15: 3200 | E15: 30 | F15: 9.375 | G15: =D15 -> 3200 | H15: 30 | I15: 9.375 | J15: 0 | K15: 0 | L15: =J15/E15 -> 0 | R15: 2.923552934 | S15: 37.93736795 | T15: 35.01381501 | V15: Funct | W15: Y=a*x+b | Y15: Y=a*ln(x)+b | AA15: Y=a*e^(b*x) | AD15: 2.923552934 | AE15: 2.858800708 | AF15: 3.067133131
B16: 4 | C16: APRIL | D16: 3450 | E16: 29 | F16: 8.405797101 | G16: =D16 -> 3450 | H16: 29 | I16: 8.405797101 | J16: 0 | K16: 0 | L16: 0 | R16: 0.4166454266 | S16: 36.93736795 | T16: 36.52072252 | V16: min | W16: =MIN(OFFSET(R13,0,0,COUNT(R13:R24),1)) -> -2.062632052 | AD16: 0.4166454266 | AE16: 0.3472887869 | AF16: 0.4665628566
B17: 5 | C17: MAY | D17: 3500 | E17: 30 | F17: 8.571428571 | G17: =D17 -> 3500 | H17: 30 | I17: 8.571428571 | J17: 0 | K17: 0 | L17: 0 | R17: 1.115263925 | S17: 37.93736795 | T17: 36.82210402 | V17: range | W17: =OFFSET($C$13,0,0,COUNT($C$13:$C$24),1) ->  | AD17: 1.115263925 | AE17: 1.058166758 | AF17: 1.135210737
B18: 6 | C18: JUNE | D18: 3600 | E18: 29 | F18: 8.055555556 | G18: 3600 | H18: 29 | I18: 8.055555556 | J18: 0 | K18: 0 | L18: 0 | R18: -0.4874990776 | S18: 36.93736795 | T18: 37.42486703 | AD18: -0.4874990776 | AE18: -0.5078885435 | AF18: -0.5390819313
B19: 7 | C19: JULY | D19: 3750 | E19: 30 | F19: 8 | G19: 3750 | H19: 30 | I19: 8 | J19: 0 | K19: 0 | L19: 0 | R19: -0.3916435818 | S19: 37.93736795 | T19: 38.32901153 | V19: FunctName | W19: FunctNumber | AD19: -0.3916435818 | AE19: -0.3281507751 | AF19: -0.5801700986
B20: 8 | C20: AUG | D20: 3800 | E20: 29.8 | F20: 7.842105263 | G20: 3800 | H20: 29.8 | I20: 7.842105263 | J20: 0 | K20: 0 | L20: 0 | R20: -0.8930250832 | S20: 37.73736795 | T20: 38.63039303 | V20: Linear | W20: 1 | AD20: -0.8930250832 | AE20: -0.7942955183 | AF20: -1.135290449
B21: 9 | C21: SEPT | D21: 3300 | E21: 27.2 | F21: 8.242424242 | G21: 3300 | H21: 27.2 | I21: 8.242424242 | J21: 0 | K21: 0 | L21: 0 | R21: -0.4792100692 | S21: 35.13736795 | T21: 35.61657802 | V21: Logaritmic | W21: 2 | AD21: -0.4792100692 | AE21: -0.5595137496 | AF21: -0.3620290811
B22: 10 | C22: OCT | D22: 3280 | E22: 28 | F22: 8.536585366 | G22: 3280 | H22: 28 | I22: 8.536585366 | J22: 0 | K22: 0 | L22: 0 | R22: 0.4413425314 | S22: 35.93736795 | T22: 35.49602542 | V22: Exponential | W22: 3 | AD22: 0.4413425314 | AE22: 0.3626363795 | AF22: 0.5649683114
B23: 11 | C23: NOV | D23: 3100 | E23: 27.9 | F23: 9 | G23: 3100 | H23: 27.9 | I23: 9 | J23: 0 | K23: 0 | L23: 0 | R23: 1.426315936 | S23: 35.83736795 | T23: 34.41105201 | AD23: 1.426315936 | AE23: 1.396747443 | AF23: 1.581933371
B24: 12 | C24: DEC | D24: 2700 | E24: 22 | F24: 8.148148148 | G24: 2700 | H24: 22 | I24: 8.148148148 | J24: 0 | K24: 0 | L24: 0 | R24: -2.062632052 | S24: 29.93736795 | T24: 32 | AD24: -2.062632052 | AE24: -1.727310169 | AF24: -1.996039769
B25: TOTAL | D25: =SUBTOTAL(9,D13:D24) -> 40305 | E25: =SUBTOTAL(9,E13:E24) -> 336.4 | F25: =E25/D25*1000 -> 8.346359013 | G25: =SUBTOTAL(9,G13:G24) -> 40305 | H25: =SUBTOTAL(9,H13:H24) -> 336.4 | I25: 8.346359013 | J25: =SUBTOTAL(9,J13:J24) -> 0 | K25: 0 | L25: =J25/E25 -> 0
Q35: iul

Sheet M&V calculation - 1
B2: Measurement & Verification results
B5: Beneficiary/Location | D5: Client _____ | G5: European Union
B6: NACE Code | C6: 2341 | D6: Ceramics factory
B8: Utility type | D8: Before the energy efficiency implementation | K8: Potential energy savings - M&T
D9: Interval analysis | F9: Production | H9: Energy | J9: Unit price
D10: Start | E10: Stop | F10: Value | G10: U.M. | H10: Value | I10: U.M. | J10: [euro/MWh] | K10: [MWh/yr] | L10: [euro/yr]
B11: Energy | D11: ='Energy before'!C13 -> JAN | E11: ='Energy before'!C24 -> DEC | F11: ='Energy before'!$D$25 -> 39752 | G11: ='Energy before'!$D$12 -> [……...] | H11: ='Energy before'!$E$25 -> 431 | I11: ='Energy before'!$E$12 -> [MWh] | J11: 95 | K11: ='Energy before'!$J$25 -> 113.6529417 | L11: =K11*J11 -> 10797.02946
B14: Utility type | D14: After the energy efficiency implementation | K14: Potential energy savings - M&T
D15: Interval analysis | F15: Production | H15: Energy | J15: Unit price
D16: Start | E16: Stop | F16: Value | G16: U.M. | H16: Value | I16: U.M. | J16: [euro/MWh] | K16: [MWh/yr] | L16: [euro/yr]
B17: Energy | D17: ='Energy after'!C13 -> JAN | E17: ='Energy after'!C24 -> DEC | F17: ='Energy after'!$D$25 -> 40305 | G17: ='Energy before'!$D$12 -> [……...] | H17: ='Energy after'!$E$25 -> 336.4 | I17: ='Energy before'!$E$12 -> [MWh] | J17: 101 | K17: ='Energy after'!$J$25 -> 0 | L17: =K17*J17 -> 0
B21: Measured and verified achieved energy saving
B22: Utility type | D22: Before the energy efficiency implementation
D23: Specific energy use | H23: Total energy use
E24: ='Energy before'!F25 -> 10.84222178 | F24: [kWh/[…]] | I24: ='Energy before'!E25 -> 431 | J24: [MWh/yr.] | K24: Achieved energy savings
B25: Energy | D25: After the energy efficiency implementation | L25: =-(('Energy after'!F13-'Energy before'!F13)*'Energy after'!D13/1000)-(('Energy after'!F14-'Energy before'!F14)*'Energy after'!D14/1000)-(('Energy after'!F15-'Energy before'!F15)*'Energy after'!D15)/1000-(('Energy after'!F16-'Energy before'!F16)*'Energy after'!D16)/1000-(('Energy after'!F17-'Energy before'!F17)*'Energy after'!D17)/1000-(('Energy after'!F18-'Energy before'!F18)*'Energy after'!D18)/1000-(('Energy after'!F19-'Energy before'!F19)*'Energy after'!D19)/1000-(('Energy after'!F20-'Energy before'!F20)*'Energy after'!D20)/1000-(('Energy after'!F21-'Energy before'!F21)*'Energy after'!D21)/1000-(('Energy after'!F22-'Energy before'!F22)*'Energy after'!D22)/1000-(('Energy after'!F23-'Energy before'!F23)*'Energy after'!D23)/1000-(('Energy after'!F24-'Energy before'!F24)*'Energy after'!D24)/1000 -> 100.4171021 | M25: [MWh/yr.]
D26: Specific energy use | H26: Total energy use | K26: Achieved cost savings
E27: ='Energy after'!F25 -> 8.346359013 | F27: =F24 -> [kWh/[…]] | I27: ='Energy after'!E25 -> 336.4 | J27: =J24 -> [MWh/yr.] | L27: =L25*J17 -> 10142.12732 | M27: [euro/yr.]

Sheet CAEN Codes (hidden)
B2: Nr.crt. | C2: Cod CAEN | D2: Tip industrie prelucratoare
B3: 1 | C3: 10 | D3: Industria alimentara.
B4: 2 | C4: 101 | D4: Productia, prelucrarea si conservarea carnii si a produselor din carne
B5: 3 | C5: 1011 | D5: Prelucrarea si conservarea carnii
B6: 4 | C6: 1012 | D6: Prelucrarea si conservarea carnii de pasare
B7: 5 | C7: 1013 | D7: Fabricarea produselor din carne (inclusiv din carne de pasare)
B8: 6 | C8: 102 | D8: Prelucrarea si conservarea pestelui, crustaceelor si molustelor
B9: 7 | C9: 1020 | D9: Prelucrarea si conservarea pestelui, crustaceelor si molustelor
B10: 8 | C10: 103 | D10: Prelucrarea si conservarea fructelor si legumelor
B11: 9 | C11: 1031 | D11: Prelucrarea si conservarea cartofilor
B12: 10 | C12: 1032 | D12: Fabricarea sucurilor de fructe si legume
B13: 11 | C13: 1039 | D13: Prelucrarea si conservarea fructelor si legumelor n.c.a.
B14: 12 | C14: 104 | D14: Fabricarea uleiurilor si a grasimilor vegetale si animale
B15: 13 | C15: 1041 | D15: Fabricarea uleiurilor si grasimilor
B16: 14 | C16: 1042 | D16: Fabricarea margarinei si a altor produse comestibile similare
B17: 15 | C17: 105 | D17: Fabricarea produselor lactate
B18: 16 | C18: 1051 | D18: Fabricarea produselor lactate si a branzeturilor
B19: 17 | C19: 1052 | D19: Fabricarea inghetatei
B20: 18 | C20: 106 | D20: Fabricarea produselor de morarit, a amidonului si produselor din amidon
B21: 19 | C21: 1061 | D21: Fabricarea produselor de morarit
B22: 20 | C22: 1062 | D22: Fabricarea amidonului si a produselor din amidon
B23: 21 | C23: 107 | D23: Fabricarea produselor de brutarie si a produselor fainoase
B24: 22 | C24: 1071 | D24: Fabricarea painii; fabricarea prajiturilor si a produselor proaspete de patiserie
B25: 23 | C25: 1072 | D25: Fabricarea biscuitilor si piscoturilor; fabricarea prajiturilor si a produselor conservate de patiserie
B26: 24 | C26: 1073 | D26: Fabricarea macaroanelor, taiteilor, cus-cus-ului si a altorproduse fainoase similare
B27: 25 | C27: 108 | D27: Fabricarea altor produse alimentare
B28: 26 | C28: 1081 | D28: Fabricarea zaharului
B29: 27 | C29: 1082 | D29: Fabricarea produselor din cacao, a ciocolatei si a produselor zaharoase
B30: 28 | C30: 1083 | D30: Prelucrarea ceaiului si cafelei
B31: 29 | C31: 1084 | D31: Fabricarea condimentelor si ingredientelor
B32: 30 | C32: 1085 | D32: Fabricarea de mancarururi preparate
B33: 31 | C33: 1086 | D33: Fabricarea preparatelor alimentare omogenizate si alimentelor dietetice
B34: 32 | C34: 1089 | D34: Fabricarea altor produse alimentare n.c.a.
B35: 33 | C35: 109 | D35: Fabricarea preparatelor pentru hrana animalelor
B36: 34 | C36: 1091 | D36: Fabricarea preparatelor pentru hrana animalelor de ferma
B37: 35 | C37: 1092 | D37: Fabricarea preparatelor pentru hrana animalelor de companie
B38: 36 | C38: 11 | D38: Fabricarea bauturilor.
B39: 37 | C39: 110 | D39: Fabricarea bauturilor
B40: 38 | C40: 1101 | D40: Distilarea, rafinarea si mixarea bauturilor alcoolice
B41: 39 | C41: 1102 | D41: Fabricarea vinurilor din struguri
B42: 40 | C42: 1103 | D42: Fabricarea cidrului si a altor vinuri din fructe
B43: 41 | C43: 1104 | D43: Fabricarea altor bauturi nedistilate, obtinute prin fermentare
B44: 42 | C44: 1105 | D44: Fabricarea berii
B45: 43 | C45: 1106 | D45: Fabricarea maltului
B46: 44 | C46: 1107 | D46: Productia de bauturi racoritoare nealcoolice; productia de ape minerale si alte ape imbuteliate
B47: 45 | C47: 12 | D47: Fabricarea produselor din tutun.
B48: 46 | C48: 120 | D48: Fabricarea produselor din tutun
B49: 47 | C49: 1200 | D49: Fabricarea produselor din tutun
B50: 48 | C50: 13 | D50: Fabricarea produselor textile.
B51: 49 | C51: 131 | D51: Pregatirea fibrelor si filarea fibrelor textile
B52: 50 | C52: 1310 | D52: Pregatirea fibrelor si filarea fibrelor textile
B53: 51 | C53: 132 | D53: Productia de tesaturi
B54: 52 | C54: 1320 | D54: Productia de tesaturi
B55: 53 | C55: 133 | D55: Finisarea materialelor textile
B56: 54 | C56: 1330 | D56: Finisarea materialelor textile
B57: 55 | C57: 139 | D57: Fabricarea altor articole textile
B58: 56 | C58: 1391 | D58: Fabricarea de metraje prin tricotare sau crosetare
B59: 57 | C59: 1392 | D59: Fabricarea de articole confectionate din textile (cu exceptia imbracamintei si lenjeriei de corp)
B60: 58 | C60: 1393 | D60: Fabricarea de covoare si mochete
B61: 59 | C61: 1394 | D61: Fabricarea de odgoane, franghii, sfori si plase
B62: 60 | C62: 1395 | D62: Fabricarea de textile netesute si articole din acestea, cu exceptia confectiilor de imbracaminte
B63: 61 | C63: 1396 | D63: Fabricarea de articole tehnice si industriale din textile
B64: 62 | C64: 1399 | D64: Fabricarea altor articole textile n.c.a.
B65: 63 | C65: 14 | D65: Fabricarea articolelor de imbracaminte.
B66: 64 | C66: 141 | D66: Fabricarea articolelor de imbracaminte, cu exceptia articolelor din blana
B67: 65 | C67: 1411 | D67: Fabricarea articolelor de imbracaminte din piele
B68: 66 | C68: 1412 | D68: Fabricarea de articole de imbracaminte pentru lucru
B69: 67 | C69: 1413 | D69: Fabricarea altor articole de imbracaminte (exclusiv lenjeria de corp)
B70: 68 | C70: 1414 | D70: Fabricarea de articole de lenjerie de corp
B71: 69 | C71: 1419 | D71: Fabricarea altor articole de imbracaminte si accesorii n.c.a.
B72: 70 | C72: 142 | D72: Fabricarea articolelor din blana
B73: 71 | C73: 1420 | D73: Fabricarea articolelor din blana
B74: 72 | C74: 143 | D74: Fabricarea articolelor de imbracaminte prin tricotare sau crosetare
B75: 73 | C75: 1431 | D75: Fabricarea prin tricotare sau crosetare a ciorapilor si articolelor de galanterie
B76: 74 | C76: 1439 | D76: Fabricarea prin tricotare sau crosetare a altor articole de imbracaminte
B77: 75 | C77: 15 | D77: Tabacirea si finisarea pieilor, prepararea si vopsirea blanurilor.
B78: 76 | C78: 151 | D78: Tabacirea si finisarea pieilor; fabricarea articolelor de voiaj simarochinarie si a articolelor de harnasament; prepararea si vopsirea blanurilor
B79: 77 | C79: 1511 | D79: Tabacirea si finisarea pieilor; prepararea si vopsirea blanurilor
B80: 78 | C80: 1512 | D80: Fabricarea articolelor de voiaj si marochinarie si a articolelorde harnasament
B81: 79 | C81: 152 | D81: Fabricarea incaltamintei
B82: 80 | C82: 1520 | D82: Fabricarea incaltamintei
B83: 81 | C83: 16 | D83: Prelucrarea lemnului,fabricarea articolelor din paie si din alte materiale vegetale impletite.
B84: 82 | C84: 161 | D84: Taierea si rindeluirea lemnului
B85: 83 | C85: 1610 | D85: Taierea si rindeluirea lemnului
B86: 84 | C86: 162 | D86: Fabricarea produselor din lemn, pluta, paie si din alte materiale vegetale
B87: 85 | C87: 1621 | D87: Fabricarea de furnire si a panourilor din lemn
B88: 86 | C88: 1622 | D88: Fabricarea parchetului asamblat in panouri
B89: 87 | C89: 1623 | D89: Fabricarea altor elemente de dulgherie si tamplarie, pentru constructii
B90: 88 | C90: 1624 | D90: Fabricarea ambalajelor din lemn
B91: 89 | C91: 1629 | D91: Fabricarea altor produse din lemn; fabricarea articolelor din pluta, paie si din alte materiale vegetale impletite
B92: 90 | C92: 17 | D92: Fabricarea hartiei si a produselor din hartie.
B93: 91 | C93: 171 | D93: Fabricarea celulozei, hartiei si cartonului
B94: 92 | C94: 1711 | D94: Fabricarea celulozei
B95: 93 | C95: 1712 | D95: Fabricarea hartiei si cartonului
B96: 94 | C96: 172 | D96: Fabricarea articolelor din hartie si carton
B97: 95 | C97: 1721 | D97: Fabricarea hartiei si cartonului ondulat si a ambalajelor din hartie si carton
B98: 96 | C98: 1722 | D98: Fabricarea produselor de uz gospodaresc si sanitar, din hartie sau carton
B99: 97 | C99: 1723 | D99: Fabricarea articolelor de papetarie
B100: 98 | C100: 1724 | D100: Fabricarea tapetului
B101: 99 | C101: 1729 | D101: Fabricarea altor articole din hartie si carton n.c.a.
B102: 100 | C102: 18 | D102: Tiparire si reproducerea pe suporti a inregistrarilor.
B103: 101 | C103: 181 | D103: Tiparire si activitati de servicii conexe tiparirii
B104: 102 | C104: 1811 | D104: Tiparirea ziarelor
B105: 103 | C105: 1812 | D105: Alte activitati de tiparire n.c.a.
B106: 104 | C106: 1813 | D106: Servicii pregatitoare pentru pretiparire
B107: 105 | C107: 1814 | D107: Legatorie si servicii conexe
B108: 106 | C108: 182 | D108: Reproducerea inregistrarilor
B109: 107 | C109: 1820 | D109: Reproducerea inregistrarilor
B110: 108 | C110: 19 | D110: Fabricarea produselor de cocserie si a produselor obtinute din prelucrarea titeiului.
B111: 109 | C111: 191 | D111: Fabricarea produselor de cocserie
B112: 110 | C112: 1910 | D112: Fabricarea produselor de cocserie
B113: 111 | C113: 192 | D113: Fabricarea produselor obtinute din prelucrarea titeiului
B114: 112 | C114: 1920 | D114: Fabricarea produselor obtinute din prelucrarea titeiului
B115: 113 | C115: 20 | D115: Fabricarea substantelor si a produselor chimice.
B116: 114 | C116: 201 | D116: Fabricarea produselor chimice de baza, a ingrasamintelor si produselor azotoase; fabricarea materialelor plastice si a cauciucului sintetic, in forme primare
B117: 115 | C117: 2011 | D117: Fabricarea gazelor industriale
B118: 116 | C118: 2012 | D118: Fabricarea colorantilor si a pigmentilor
B119: 117 | C119: 2013 | D119: Fabricarea altor produse chimice anorganice, de baza
B120: 118 | C120: 2014 | D120: Fabricarea altor produse chimice organice, de baza
B121: 119 | C121: 2015 | D121: Fabricarea ingrasamintelor si produselor azotoase
B122: 120 | C122: 2016 | D122: Fabricarea materialelor plastice in forme primare
B123: 121 | C123: 2017 | D123: Fabricarea cauciucului sintetic in forme primare
B124: 122 | C124: 202 | D124: Fabricarea pesticidelor si a altor produse agrochimice
B125: 123 | C125: 2020 | D125: Fabricarea pesticidelor si a altor produse agrochimice
B126: 124 | C126: 203 | D126: Fabricarea vopselelor, lacurilor, cernelii tipografice si masticurilor
B127: 125 | C127: 2030 | D127: Fabricarea vopselelor, lacurilor, cernelii tipografice simasticurilor
B128: 126 | C128: 204 | D128: Fabricarea sapunurilor, detergentilor si a produselor de intretinere, cosmetice si de parfumerie
B129: 127 | C129: 2041 | D129: Fabricarea sapunurilor, detergentilor si a produselor de intretinere
B130: 128 | C130: 2042 | D130: Fabricarea parfumurilor si a produselor cosmetice (de toaleta)
B131: 129 | C131: 205 | D131: Fabricarea altor produse chimice
B132: 130 | C132: 2051 | D132: Fabricarea explozivilor
B133: 131 | C133: 2052 | D133: Fabricarea cleiurilor
B134: 132 | C134: 2053 | D134: Fabricarea uleiurilor esentiale
B135: 133 | C135: 2059 | D135: Fabricarea altor produse chimice n.c.a.
B136: 134 | C136: 206 | D136: Fabricarea fibrelor sintetice si artificiale
B137: 135 | C137: 2060 | D137: Fabricarea fibrelor sintetice si artificiale
B138: 136 | C138: 21 | D138: Fabricarea produselor farmaceutice de baza si a preparatelor farmaceutice.
B139: 137 | C139: 211 | D139: Fabricarea produselor farmaceutice de baza
B140: 138 | C140: 2110 | D140: Fabricarea produselor farmaceutice de baza
B141: 139 | C141: 212 | D141: Fabricarea preparatelor farmaceutice
B142: 140 | C142: 2120 | D142: Fabricarea preparatelor farmaceutice
B143: 141 | C143: 22 | D143: Fabricarea produselor din cauciuc si mase plastice.
B144: 142 | C144: 221 | D144: Fabricarea articolelor din cauciuc
B145: 143 | C145: 2211 | D145: Fabricarea anvelopelor si a camerelor de aer; resaparea si refacerea anvelopelor
B146: 144 | C146: 2219 | D146: Fabricarea altor produse din cauciuc
B147: 145 | C147: 222 | D147: Fabricarea articolelor din material plastic
B148: 146 | C148: 2221 | D148: Fabricarea placilor, foliilor, tuburilor si profilelor din material plastic
B149: 147 | C149: 2222 | D149: Fabricarea articolelor de ambalaj din material plastic
B150: 148 | C150: 2223 | D150: Fabricarea articolelor din material plastic pentru constructii
B151: 149 | C151: 2229 | D151: Fabricarea altor produse din material plastic
B152: 150 | C152: 23 | D152: Fabricarea altor produse din minerale nemetalice.
B153: 151 | C153: 231 | D153: Fabricarea sticlei si a articolelor din sticla
B154: 152 | C154: 2311 | D154: Fabricarea sticlei plate
B155: 153 | C155: 2312 | D155: Prelucrarea si fasonarea sticlei plate
B156: 154 | C156: 2313 | D156: Fabricarea articolelor din sticla
B157: 155 | C157: 2314 | D157: Fabricarea fibrelor din sticla
B158: 156 | C158: 2319 | D158: Fabricarea de sticlarie tehnica
B159: 157 | C159: 232 | D159: Fabricarea de produse refractare
B160: 158 | C160: 2320 | D160: Fabricarea de produse refractare
B161: 159 | C161: 233 | D161: Fabricarea materialelelor de constructii din argila
B162: 160 | C162: 2331 | D162: Fabricarea placilor si dalelor din ceramica
B163: 161 | C163: 2332 | D163: Fabricarea caramizilor, tiglelor si altor produse pentru constructii, din argila arsa
B164: 162 | C164: 234 | D164: Fabricarea altor articole din ceramica si portelan
B165: 163 | C165: 2341 | D165: Fabricarea articolelor ceramice pentru uz gospodaresc si ornamental
B166: 164 | C166: 2342 | D166: Fabricarea de obiecte sanitare din ceramica
B167: 165 | C167: 2343 | D167: Fabricarea izolatorilor si pieselor izolante din ceramica
B168: 166 | C168: 2344 | D168: Fabricarea altor produse tehnice din ceramica
B169: 167 | C169: 2349 | D169: Fabricarea altor produse ceramice n.c.a.
B170: 168 | C170: 235 | D170: Fabricarea cimentului, varului si ipsosului
B171: 169 | C171: 2351 | D171: Fabricarea cimentului
B172: 170 | C172: 2352 | D172: Fabricarea varului si ipsosului
B173: 171 | C173: 236 | D173: Fabricarea articolelor din beton, ciment si ipsos
B174: 172 | C174: 2361 | D174: Fabricarea produselor din beton pentru constructii
B175: 173 | C175: 2362 | D175: Fabricarea produselor din ipsos pentru constructii
B176: 174 | C176: 2363 | D176: Fabricarea betonului
B177: 175 | C177: 2364 | D177: Fabricarea mortarului
B178: 176 | C178: 2365 | D178: Fabricarea produselor din azbociment
B179: 177 | C179: 2369 | D179: Fabricarea altor articole din beton, ciment si ipsos
B180: 178 | C180: 237 | D180: Taierea, fasonarea si finisarea pietrei
B181: 179 | C181: 2370 | D181: Taierea, fasonarea si finisarea pietrei
B182: 180 | C182: 239 | D182: Fabricarea produselor abrazive si a altor produse din minerale nemetalice n.c.a.
B183: 181 | C183: 2391 | D183: Fabricarea de produse abrazive
B184: 182 | C184: 2399 | D184: Fabricarea altor produse din minerale nemetalice, n.c.a.
B185: 183 | C185: 24 | D185: Industria metalurgica.
B186: 184 | C186: 241 | D186: Productia de metale feroase sub forme primare si de feroaliaje
B187: 185 | C187: 2410 | D187: Productia de metale feroase sub forme primare si de feroaliaje
B188: 186 | C188: 242 | D188: Productia de tuburi, tevi, profile tubulare si accesorii pentru acestea, din otel
B189: 187 | C189: 2420 | D189: Productia de tuburi, tevi, profile tubulare si accesorii pentru acestea, din otel
B190: 188 | C190: 243 | D190: Fabricarea altor produse prin prelucrarea primara aotelului
B191: 189 | C191: 2431 | D191: Tragere la rece a barelor
B192: 190 | C192: 2432 | D192: Laminare la rece a benzilor inguste
B193: 191 | C193: 2433 | D193: Productia de profile obtinute la rece
B194: 192 | C194: 2434 | D194: Trefilarea firelor la rece
B195: 193 | C195: 244 | D195: Productia metalelor pretioase si a altor metale neferoase
B196: 194 | C196: 2441 | D196: Productia metalelor pretioase
B197: 195 | C197: 2442 | D197: Metalurgia aluminiului
B198: 196 | C198: 2443 | D198: Productia plumbului, zincului si cositorului
B199: 197 | C199: 2444 | D199: Metalurgia cuprului
B200: 198 | C200: 2445 | D200: Productia altor metale neferoase
B201: 199 | C201: 2446 | D201: Prelucrarea combustibililor nucleari
... 144 more rows

Sheet List (hidden)
B2: Nr.crt. | C2: CAEN | D2: Tip industrie prelucratoare
B3: 1 | C3: 10 | D3: Industria alimentara.
B4: 2 | C4: 11 | D4: Fabricarea bauturilor.
B5: 3 | C5: 12 | D5: Fabricarea produselor din tutun.
B6: 4 | C6: 13 | D6: Fabricarea produselor textile.
B7: 5 | C7: 14 | D7: Fabricarea articolelor de imbracaminte.
B8: 6 | C8: 15 | D8: Tabacirea si finisarea pieilor, prepararea si vopsirea blanurilor.
B9: 7 | C9: 16 | D9: Prelucrarea lemnului,fabricarea articolelor din paie si din alte materiale vegetale impletite.
B10: 8 | C10: 17 | D10: Fabricarea hartiei si a produselor din hartie.
B11: 9 | C11: 18 | D11: Tiparire si reproducerea pe suporti a inregistrarilor.
B12: 10 | C12: 19 | D12: Fabricarea produselor de cocserie si a produselor obtinute din prelucrarea titeiului.
B13: 11 | C13: 20 | D13: Fabricarea substantelor si a produselor chimice.
B14: 12 | C14: 21 | D14: Fabricarea produselor farmaceutice de baza si a preparatelor farmaceutice.
B15: 13 | C15: 22 | D15: Fabricarea produselor din cauciuc si mase plastice.
B16: 14 | C16: 23 | D16: Fabricarea altor produse din minerale nemetalice.
B17: 15 | C17: 24 | D17: Industria metalurgica.
B18: 16 | C18: 25 | D18: Industria constructiilor metalice si a produselor din metal, exclusiv masini, utilaje si instalatii.
B19: 17 | C19: 26 | D19: Fabricarea calculatoarelor si a produselor electronice si optice.
B20: 18 | C20: 27 | D20: Fabricarea echipamentelor electrice.
B21: 19 | C21: 28 | D21: Fabricarea de masini, utilaje si echipamente n.c.a.
B22: 20 | C22: 29 | D22: Fabricarea autovehiculelor de transport rutier, a remorcilor si semiremorcilor.
B23: 21 | C23: 30 | D23: Fabricarea altor mijloace de transport.
B24: 22 | C24: 32 | D24: Alte activitati industriale n.c.a.
B25: 23 | C25: 33 | D25: Repararea, intretinerea si instalarea masinilor si echipamentelor.

Sheet Database (hidden)
B2: No.crt. | C2: CAEN Code | D2: Beneficiary | E2: Location | F2: Interval analysis | H2: Key Performance Indicators
F3: Start | G3: Stop | H3: Electricity | I3: Methane Gas | J3: Industrial water
B4: 1 | C4: 2341 | D4: Client 1 | E4: Locatia 1 | F4: 2009-01-01 | G4: 2012-09-30 | H4: 0.556
B5: 2 | C5: 2341 | D5: Client 2 | E5: Locatia 2 | F5: 2012-01-01 | G5: 2013-09-30 | H5: 0.639

Sheet M&V calculation - 2
A1: a_optimized | B1: ='Energy before'!X25 -> 0.01836015021 | F1: a_real | G1: ='Energy before'!X14 -> 0.01836015021 | K1: a_manual target | L1: ='Energy before'!X34 -> 0.01725854119
A2: b_optimized | B2: ='Energy before'!X24 -> -34.37546939 | F2: b_real | G2: ='Energy before'!X13 -> -24.90439091 | K2: b_manual target | L2: ='Energy before'!X33 -> -23.41012746
A3: Optimized trend line | F3: Baseline trend line | K3: Manual trend line
A9: Measurement and Verification
A10: No. | B10: Duration | C10: Real - after the energy efficiency implementation | E10: Verification
B11: Month | C11: Production | D11: Measured consumption | E11: Estimated consumption based on baseline trend | F11: Estimated consumption based on target optimized trend | G11: Estimated consumption based on target manual trend | H11: Baseline trend SAV % | I11: Optimized target trend SAV % | J11: Manual target trend SAV % | K11: Baseline trend conclusion | L11: Optimal trend conclusion | M11: Manual trend conclusion
C12: [……...] | D12: [……...] | E12: [……...] | F12: [……...]
A13: 1 | B13: JAN | C13: ='Energy after'!D13 -> 3500 | D13: ='Energy after'!E13 -> 27.5 | E13: =($G$1*C13)+$G$2 -> 39.35613481 | F13: =($B$1*C13)+$B$2 -> 29.88505633 | G13: =($L$1*C13)+$L$2 -> 36.99476672 | H13: =(D13-E13)/E13*100 -> -30.12525204 | I13: =(D13-F13)/F13*100 -> -7.980765708 | J13: =(D13-G13)/G13*100 -> -25.66516175 | K13: =IF(H13<0,"energy saving","not energy saving") -> energy saving | L13: =IF(I13<0,"target reached","target not reached") -> target reached | M13: =IF(J13<0,"target reached","target not reached") -> target reached
A14: 2 | B14: FEB | C14: ='Energy after'!D14 -> 3125 | D14: ='Energy after'!E14 -> 26 | E14: =($G$1*C14)+$G$2 -> 32.47107848 | F14: =($B$1*C14)+$B$2 -> 23 | G14: =($L$1*C14)+$L$2 -> 30.52281377 | H14: =(D14-E14)/E14*100 -> -19.92874515 | I14: =(D14-F14)/F14*100 -> 13.04347826 | J14: =(D14-G14)/G14*100 -> -14.81781399 | K14: =IF(H14<0,"energy saving","not energy saving") -> energy saving | L14: =IF(I14<0,"target reached","target not reached") -> target not reached | M14: =IF(J14<0,"target reached","target not reached") -> target reached
A15: 3 | B15: MARCH | C15: ='Energy after'!D15 -> 3200 | D15: ='Energy after'!E15 -> 30 | E15: 33.84808974 | F15: 24.37701127 | G15: 31.81720436 | H15: -11.3687058 | I15: 23.06676841 | J15: -5.711389154 | K15: energy saving | L15: target not reached | M15: target reached
A16: 4 | B16: APRIL | C16: ='Energy after'!D16 -> 3450 | D16: ='Energy after'!E16 -> 29 | E16: 38.43812729 | F16: 28.96704882 | G16: 36.13183966 | H16: -24.5540768 | I16: 0.1137540223 | J16: -19.73837957 | K16: energy saving | L16: target not reached | M16: target reached
A17: 5 | B17: MAY | C17: ='Energy after'!D17 -> 3500 | D17: ='Energy after'!E17 -> 30 | E17: 39.35613481 | F17: 29.88505633 | G17: 36.99476672 | H17: -23.77300223 | I17: 0.3846192278 | J17: -18.90744918 | K17: energy saving | L17: target not reached | M17: target reached
A18: 6 | B18: JUNE | C18: ='Energy after'!D18 -> 3600 | D18: ='Energy after'!E18 -> 29 | E18: 41.19214983 | F18: 31.72107135 | G18: 38.72062084 | H18: -29.59823626 | I18: -8.578119313 | J18: -25.10450666 | K18: energy saving | L18: target reached | M18: target reached
A19: 7 | B19: JULY | C19: ='Energy after'!D19 -> 3750 | D19: ='Energy after'!E19 -> 30 | E19: 43.94617236 | F19: 34.47509388 | G19: 41.30940202 | H19: -31.73466905 | I19: -12.98065756 | J19: -27.3773075 | K19: energy saving | L19: target reached | M19: target reached
A20: 8 | B20: AUG | C20: ='Energy after'!D20 -> 3800 | D20: ='Energy after'!E20 -> 29.8 | E20: 44.86417987 | F20: 35.39310139 | G20: 42.17232907 | H20: -33.57729911 | I20: -15.80280102 | J20: -29.33755224 | K20: energy saving | L20: target reached | M20: target reached
A21: 9 | B21: SEPT | C21: ='Energy after'!D21 -> 3300 | D21: ='Energy after'!E21 -> 27.2 | E21: 35.68410476 | F21: 26.21302629 | G21: 33.54305848 | H21: -23.77558529 | I21: 3.765203236 | J21: -18.91019712 | K21: energy saving | L21: target not reached | M21: target reached
A22: 10 | B22: OCT | C22: ='Energy after'!D22 -> 3280 | D22: ='Energy after'!E22 -> 28 | E22: 35.31690176 | F22: 25.84582328 | G22: 33.19788765 | H22: -20.71784725 | I22: 8.334718901 | J22: -15.65728431 | K22: energy saving | L22: target not reached | M22: target reached
A23: 11 | B23: NOV | C23: ='Energy after'!D23 -> 3100 | D23: ='Energy after'!E23 -> 27.9 | E23: 32.01207472 | F23: 22.54099624 | G23: 30.09135024 | H23: -12.84538649 | I23: 23.77447606 | J23: -7.282326058 | K23: energy saving | L23: target not reached | M23: target reached
A24: 12 | B24: DEC | C24: ='Energy after'!D24 -> 2700 | D24: ='Energy after'!E24 -> 22 | E24: 24.66801464 | F24: 15.19693616 | G24: 23.18793376 | H24: -10.81568452 | I24: 44.76602234 | J24: -5.123068637 | K24: energy saving | L24: target not reached | M24: target reached
A25: TOTAL | C25: =SUM(C13:C24) -> 40305 | D25: =SUM(D13:D24) -> 336.4 | E25: =SUM(E13:E24) -> 441.1531631 | F25: =SUM(F13:F24) -> 327.5002213 | G25: =SUM(G13:G24) -> 414.6839733 | H25: -23.74530477 | I25: 2.717487835 | J25: -18.8779838 | K25: energy saving | L25: target not reached | M25: target reached
